fUSD/lending_fUSD_20240518
["ID","MTS","AMOUNT","RATE_DAILY","PERIOD"]
[327380625,1716031846515,-500.0,0.00035616,9]
[327380626,1716031846524,-500.0,0.00035616,9]
[327380627,1716031846534,-640.38,0.00035616,9]
[327380628,1716031846543,-500.0,0.00035616,9]
[327380629,1716031846554,-500.0,0.00035616,9]
[327380630,1716031846563,-500.0,0.00035616,9]
[327380631,1716031846573,-1564.60657979,0.00035682,2]
[327380632,1716031846583,-154.81520747,0.00035688,2]
[327380633,1716031846593,-500.0,0.00035699,9]
[327380634,1716031846603,-500.0,0.00035699,9]
[327380635,1716031846613,-500.0,0.00035699,9]
[327380636,1716031846623,-37708.20036154,0.000357,7]
[327380637,1716031846946,-293.42592338,0.00013771,2]
[327380638,1716031846985,-134.97078632,0.00013771,2]
[327380639,1716031846995,-601.54,0.00035616,9]
[327380640,1716031847005,-1149.98921371,0.000357,7]
[327380641,1716031847019,-1404.9805973,0.000357,7]
[327380642,1716031847031,-1937.47201047,0.000357,7]
[327380643,1716031847044,-315.6,0.000357,7]
[327380644,1716031847058,-497.0,0.000357,7]
[327380645,1716031847292,-500.0,0.00035616,9]
[327380646,1716031847302,-500.0,0.00035616,9]
[327380647,1716031847312,-500.0,0.00035616,9]
[327380648,1716031847322,-500.0,0.00035616,9]
[327380649,1716031847332,-4740.63145278,0.000357,7]
[327380650,1716031847344,-780.25027977,0.000357,7]
[327380651,1716031847356,-202667.20881472,0.000357,7]
[327380652,1716031847368,-4039.99778183,0.000357,7]
[327380653,1716031847389,-387.29211745,0.000357,7]
[327380654,1716031847401,-1625.7938459,0.000357,7]
[327380655,1716031847414,-1835.89565874,0.000357,7]
[327380656,1716031847427,-549883.65251548,0.000357,7]
[327380657,1716031847437,-151.0,0.000357,7]
[327380658,1716031847447,-151.0,0.000357,7]
[327380659,1716031847457,-154.81520747,0.00035739,2]
[327380660,1716031847467,-198.58086388,0.00035788,2]
[327380661,1716031847477,-6418.14153297,0.00035788,2]
[327380662,1716031847487,-669.35192098,0.00035788,2]
[327380663,1716031847496,-344.17193722,0.00035788,2]
[327380664,1716031847506,-175.50655605,0.00035789,8]
[327380665,1716031847516,-185.95138287,0.00035789,8]
[327380666,1716031847526,-6403.81937116,0.00035789,8]
[327380667,1716031847536,-292.51491529,0.0003579,8]
[327380668,1716031847546,-154.81520747,0.0003579,2]
[327380669,1716031847556,-14127.58108423,0.00035797,2]
[327380670,1716031847566,-500.0,0.00035799,9]
[327380671,1716031847576,-22541.878752,0.000358,2]
[327380672,1716031847586,-22541.878752,0.000358,2]
[327380673,1716031847595,-22541.878752,0.000358,2]
[327380674,1716031847605,-22541.878752,0.000358,2]
[327380675,1716031847615,-22541.878752,0.000358,2]
[327380676,1716031847625,-22541.878752,0.000358,2]
[327380677,1716031847635,-22541.878752,0.000358,2]
[327380678,1716031847645,-22541.878752,0.000358,2]
[327380679,1716031847655,-22541.878752,0.000358,2]
[327380680,1716031847665,-150.0,0.000358,8]
[327380681,1716031847675,-152.314767,0.00035885,7]
[327380682,1716031847685,-151.0,0.00035885,7]
[327380683,1716031847695,-174.323162,0.00035885,7]
[327380684,1716031847705,-152.059098,0.00035885,7]
[327380685,1716031847714,-151.0,0.00035885,7]
[327380686,1716031847724,-151.0,0.00035885,7]
[327380687,1716031847734,-151.0,0.00035885,7]
[327380688,1716031847744,-151.0,0.00035885,7]
[327380689,1716031847754,-151.0,0.00035885,7]
[327380690,1716031847764,-151.0,0.00035885,7]
[327380691,1716031847774,-151.0,0.00035885,7]
[327380692,1716031847783,-151.0,0.00035885,7]
[327380693,1716031847793,-151.0,0.00035885,7]
[327380694,1716031847803,-151.0,0.00035885,7]
[327380695,1716031847814,-153.04001,0.00035885,7]
[327380696,1716031847824,-151.0,0.00035885,7]
[327380697,1716031847834,-151.0,0.00035885,7]
[327380698,1716031847843,-153.04001,0.00035885,7]
[327380699,1716031847853,-151.0,0.00035885,7]
[327380700,1716031847863,-160.673059,0.00035885,7]
[327380701,1716031847873,-151.0,0.00035885,7]
[327380702,1716031847883,-151.0,0.00035885,7]
[327380703,1716031847893,-151.0,0.00035885,7]
[327380704,1716031847903,-154.876726,0.00035885,7]
[327380705,1716031847913,-151.0,0.00035885,7]
[327380706,1716031847923,-151.0,0.00035885,7]
[327380707,1716031847933,-151.0,0.00035885,7]
[327380708,1716031847944,-151.0,0.00035885,7]
[327380709,1716031847954,-259.823982,0.00035885,7]
[327380710,1716031847964,-259.823982,0.00035885,7]
[327380711,1716031847977,-151.0,0.00035885,7]
[327380712,1716031847987,-151.0,0.00035885,7]
[327380713,1716031847997,-170.003045,0.00035885,7]
[327380714,1716031848007,-170.003045,0.00035885,7]
[327380715,1716031848018,-151.0,0.00035885,7]
[327380716,1716031848028,-151.0,0.00035885,7]
[327380717,1716031848038,-151.0,0.00035885,7]
[327380718,1716031848049,-151.0,0.00035885,7]
[327380719,1716031848059,-151.0,0.00035885,2]
[327380720,1716031848069,-151.0,0.00035885,7]
[327380721,1716031848079,-151.0,0.00035885,7]
[327380722,1716031848090,-151.0,0.00035885,7]
[327380723,1716031848099,-151.0,0.00035885,7]
[327380724,1716031848109,-151.0,0.00035885,7]
[327380725,1716031848119,-151.0,0.00035885,7]
[327380726,1716031848128,-151.944904,0.00035885,7]
[327380727,1716031848138,-151.0,0.00035885,7]
[327380728,1716031848150,-309.553983,0.00035885,7]
[327380729,1716031848160,-309.553983,0.00035885,7]
[327380730,1716031848170,-151.0,0.00035885,7]
[327380731,1716031848235,-151.0,0.00035885,7]
[327380732,1716031848245,-151.0,0.00035885,7]
[327380733,1716031848255,-165.663897,0.00035885,7]
[327380734,1716031848265,-151.0,0.00035885,7]
[327380735,1716031848274,-151.0,0.00035885,7]
[327380736,1716031848284,-480.464868,0.00035885,7]
[327380737,1716031848293,-480.464868,0.00035885,7]
[327380738,1716031848303,-151.0,0.00035885,7]
[327380739,1716031848312,-151.0,0.00035885,7]
[327380740,1716031848322,-151.0,0.00035885,7]
[327380741,1716031848333,-183.39581,0.00035885,7]
[327380742,1716031848343,-183.39581,0.00035885,7]
[327380743,1716031848353,-151.0,0.00035885,7]
[327380744,1716031848362,-189.242593,0.00035885,7]
[327380745,1716031848372,-189.242593,0.00035885,7]
[327380746,1716031848382,-282.688429,0.00035885,7]
[327380747,1716031848392,-282.688429,0.00035885,7]
[327380748,1716031848402,-151.0,0.00035885,7]
[327380749,1716031848412,-198.948383,0.00035885,7]
[327380750,1716031848422,-264.576667,0.00035885,7]
[327380751,1716031848431,-151.0,0.00035885,7]
[327380752,1716031848441,-198.948383,0.00035885,7]
[327380753,1716031848451,-151.0,0.00035885,7]
[327380754,1716031848460,-151.0,0.00035885,7]
[327380755,1716031848470,-882.763056,0.00035885,7]
[327380756,1716031848480,-151.0,0.00035885,7]
[327380757,1716031848490,-882.763056,0.00035885,7]
[327380758,1716031848499,-187.481053,0.00035885,7]
[327380759,1716031848509,-187.481053,0.00035885,7]
[327380760,1716031848519,-151.0,0.00035885,7]
[327380761,1716031848528,-499.371393,0.00035885,7]
[327380762,1716031848538,-151.0,0.00035885,7]
[327380763,1716031848548,-158.204037,0.00035885,7]
[327380764,1716031848558,-499.371393,0.00035885,7]
[327380765,1716031848568,-151.0,0.00035885,7]
[327380766,1716031848577,-151.0,0.00035885,7]
[327380767,1716031848587,-151.0,0.00035885,7]
[327380768,1716031848597,-151.0,0.00035885,7]
[327380769,1716031848607,-151.0,0.00035885,7]
[327380770,1716031848616,-154.661987,0.00035885,7]
[327380771,1716031848626,-251.841731,0.00035885,7]
[327380772,1716031848636,-151.0,0.00035885,7]
[327380773,1716031848646,-154.661987,0.00035885,7]
[327380774,1716031848656,-251.841731,0.00035885,7]
[327380775,1716031848666,-151.0,0.00035885,7]
[327380776,1716031848676,-151.0,0.00035885,7]
[327380777,1716031848685,-151.0,0.00035885,7]
[327380778,1716031848695,-42382.74325269,0.00035885,2]
[327380779,1716031848705,-500.0,0.00035887,9]
[327380780,1716031848714,-500.0,0.00035887,9]
[327380781,1716031848724,-500.0,0.00035887,9]
[327380782,1716031848734,-500.0,0.00035887,9]
[327380783,1716031848743,-500.0,0.00035887,9]
[327380784,1716031848753,-500.0,0.00035887,9]
[327380785,1716031848763,-500.0,0.00035887,9]
[327380786,1716031848773,-500.0,0.00035887,9]
[327380787,1716031848783,-500.0,0.00035887,9]
[327380788,1716031848793,-500.0,0.00035887,9]
[327380789,1716031848803,-500.0,0.00035887,9]
[327380790,1716031848813,-500.0,0.00035887,9]
[327380791,1716031848823,-14127.58108423,0.00035887,2]
[327380792,1716031848833,-126640.79366205,0.00035887,29]
[327380793,1716031848846,-2049.94738599,0.00035887,29]
[327380794,1716031848858,-9901.98761922,0.00035887,29]
[327380795,1716031848870,-3213.13776323,0.00035887,29]
[327380796,1716031848885,-670.14303817,0.00035887,29]
[327380797,1716031849317,-444.44444635,0.00033987,2]
[327380798,1716031849327,-500.0,0.00035616,9]
[327380799,1716031849337,-500.0,0.00035616,9]
[327380800,1716031849347,-500.0,0.00035616,9]
[327380801,1716031849357,-500.0,0.00035616,9]
[327380802,1716031849368,-150619.2743488,0.00035887,29]
[327380803,1716031849380,-2654.17372556,0.00035887,29]
[327380804,1716031849391,-1351.41252935,0.00035887,29]
[327380805,1716031849509,-41285.31494061,0.00035887,29]
[327380806,1716031849521,-27245.08664306,0.00035887,29]
[327380807,1716031849534,-18453.50087886,0.00035887,29]
[327380808,1716031849545,-16989.91276986,0.00035887,29]
[327380809,1716031849557,-507.30573655,0.00035887,29]
[327380810,1716031849568,-858.72191135,0.00035887,29]
[327380811,1716031849580,-1309.41329316,0.00035887,29]
[327380812,1716031849591,-498.40910865,0.00035887,29]
[327380813,1716031849603,-569.69428986,0.00035887,29]
[327380814,1716031849615,-494.17574675,0.00035887,29]
[327380815,1716031849635,-346.30032205,0.00035616,9]
[327380831,1716031983070,150.0,0.00019725,2]
[327380837,1716032160853,242.97745179,0.000101,2]
[327380839,1716032235729,209.2400585,0.0001,2]
[327380840,1716032248273,166.66666666,0.00019164,2]
[327380843,1716032282630,155.52,0.00013973,2]
[327380848,1716032479763,428.3967097,0.00017807,2]
[327380849,1716032523606,267.77594492,0.00017807,2]
[327380858,1716032878609,1006.61572544,0.00019451,2]
[327380927,1716033032381,-428.3967097,0.00025096,2]
[327380928,1716033032390,-221.6032903,0.00025097,2]
[327380929,1716033032432,-46.17265462,0.00025097,2]
[327380930,1716033032445,-320.0,0.000251,2]
[327380931,1716033032456,-200.01,0.00029872,2]
[327380932,1716033032465,-181.16,0.00029872,120]
[327380933,1716033032484,-250.0,0.00029872,2]
[327380934,1716033032495,-250.0,0.00029872,2]
[327380935,1716033032504,-499.99,0.00029872,2]
[327380936,1716033032514,-4620.01235759,0.0003,2]
[327380937,1716033032535,-259.1,0.0003,2]
[327380938,1716033032548,-287.37338502,0.0003,2]
[327380939,1716033032570,-1666.21425739,0.0003,2]
[327380940,1716033032580,-267.73144956,0.0003,2]
[327380941,1716033032693,-838.296,0.0003,2]
[327380984,1716033037558,-4852.6012,0.0003,2]
[327380986,1716033037671,-496.816951,0.0003,2]
[327380987,1716033037684,-377.25439944,0.0003,2]
[327380988,1716033037695,-316.34143198,0.000312,2]
[327380989,1716033037786,-300.001004,0.000312,2]
[327380990,1716033037799,-3569.65756402,0.000312,2]
[327380991,1716033037809,-152.37,0.00031514,2]
[327380992,1716033037819,-430.76,0.00032821,2]
[327380993,1716033037828,-154.83,0.00032903,120]
[327380994,1716033037838,-250.0,0.00032957,115]
[327380995,1716033037848,-23900.0,0.00032957,2]
[327380996,1716033037858,-177.8,0.00033122,2]
[327380997,1716033037868,-500.0,0.00033175,2]
[327380998,1716033037878,-200.01,0.00033606,2]
[327380999,1716033037890,-2000.0,0.00033828,120]
[327381000,1716033037900,-163.39,0.00034329,2]
[327381001,1716033037910,-306.48,0.00034329,2]
[327381002,1716033037920,-487.94,0.00034329,2]
[327381003,1716033037930,-523.82,0.00034329,2]
[327381004,1716033037939,-150.0,0.00034329,2]
[327381005,1716033037949,-150.0,0.00034329,2]
[327381006,1716033037959,-420.16,0.00034329,2]
[327381007,1716033037969,-523.82,0.00034329,2]
[327381008,1716033037979,-150.0,0.00034329,2]
[327381009,1716033037988,-163.39,0.00034329,2]
[327381010,1716033037998,-150.0,0.00034329,2]
[327381011,1716033038008,-351.66,0.00034329,2]
[327381012,1716033038018,-523.82,0.00034329,2]
[327381013,1716033038028,-150.0,0.00034329,2]
[327381015,1716033038038,-150.0,0.00034329,2]
[327381017,1716033038048,-351.66,0.00034329,2]
[327381019,1716033038059,-163.39,0.00034329,2]
[327381021,1716033038068,-150.0,0.00034329,2]
[327381023,1716033038078,-150.0,0.00034329,2]
[327381024,1716033038087,-351.66,0.00034329,2]
[327381025,1716033038097,-523.82,0.00034329,2]
[327381026,1716033038107,-163.39,0.00034329,2]
[327381027,1716033038117,-150.0,0.00034548,10]
[327381028,1716033038126,-300.0,0.00035,14]
[327381029,1716033038138,-523.82,0.00035151,2]
[327381030,1716033038148,-150.0,0.00035151,2]
[327381031,1716033038157,-150.0,0.00035151,2]
[327381032,1716033038167,-163.39,0.00035151,2]
[327381033,1716033038177,-351.66,0.00035151,2]
[327381034,1716033038188,-523.82,0.00035151,2]
[327381035,1716033038198,-841.12,0.00035151,2]
[327381036,1716033038208,-150.0,0.00035151,2]
[327381037,1716033038218,-163.09,0.00035151,2]
[327381038,1716033038227,-350.02,0.00035151,2]
[327381039,1716033038237,-300.0,0.00035151,2]
[327381040,1716033038247,-150.0,0.00035151,2]
[327381041,1716033038257,-523.82,0.00035151,2]
[327381042,1716033038266,-163.39,0.00035151,2]
[327381043,1716033038276,-351.66,0.00035151,2]
[327381044,1716033038286,-150.0,0.00035151,2]
[327381045,1716033038296,-420.56,0.00035151,2]
[327381046,1716033038306,-300.0,0.00035151,2]
[327381047,1716033038316,-150.0,0.00035151,2]
[327381048,1716033038326,-523.82,0.00035151,2]
[327381049,1716033038336,-150.0,0.00035151,2]
[327381050,1716033038346,-300.0,0.00035151,2]
[327381051,1716033038356,-326.78,0.00035151,2]
[327381053,1716033038371,-703.32,0.00035151,2]
[327381085,1716033038661,-163.39,0.00035151,2]
[327381087,1716033038671,-351.66,0.00035151,2]
[327381089,1716033038680,-523.82,0.00035151,2]
[327381091,1716033038690,-150.0,0.00035151,2]
[327381093,1716033038700,-1279.1336,0.0003524,3]
[327381095,1716033038709,-2500.0,0.0003524,2]
[327381097,1716033038719,-175.98,0.0003533,2]
[327381099,1716033038728,-4737.72281509,0.00035339,4]
[327381101,1716033038738,-500.0,0.00035339,9]
[327381103,1716033038747,-500.0,0.00035339,9]
[327381105,1716033038757,-500.0,0.00035339,9]
[327381107,1716033038766,-642.99,0.00035339,9]
[327381109,1716033038776,-764.4,0.00035339,9]
[327381111,1716033038786,-500.0,0.00035339,9]
[327381113,1716033038796,-500.0,0.00035339,9]
[327381115,1716033038806,-500.0,0.00035339,9]
[327381117,1716033038816,-570.83,0.00035339,9]
[327381119,1716033038825,-840.28,0.00035339,9]
[327381121,1716033038836,-500.0,0.00035339,9]
[327381123,1716033038845,-550.84,0.00035339,9]
[327381125,1716033038854,-500.0,0.00035339,9]
[327381127,1716033038864,-500.0,0.00035339,9]
[327381129,1716033038873,-500.0,0.00035339,9]
[327381131,1716033038886,-500.0,0.00035339,9]
[327381133,1716033038895,-635.32,0.00035339,9]
[327381135,1716033038905,-685.95,0.00035339,9]
[327381137,1716033038914,-500.0,0.00035339,9]
[327381139,1716033038924,-647.61,0.00035339,9]
[327381141,1716033038933,-696.56,0.00035339,9]
[327381143,1716033038942,-500.0,0.00035339,9]
[327381145,1716033038952,-344.0677609,0.00035339,9]
[327381148,1716033038962,-500.0,0.00035339,9]
[327381149,1716033038971,-280.9517269,0.00035339,9]
[327381152,1716033038980,-500.0,0.00035339,9]
[327381154,1716033038990,-1050.72,0.00035339,9]
[327381156,1716033039000,-500.0,0.00035339,9]
[327381157,1716033039010,-761.95,0.00035339,9]
[327381160,1716033039022,-1505.19,0.00035339,9]
[327381162,1716033039032,-501.34715,0.00035339,9]
[327381164,1716033039042,-548.38659651,0.00035339,9]
[327381166,1716033039052,-500.0,0.00035339,9]
[327381168,1716033039062,-500.0,0.00035339,9]
[327381170,1716033039072,-680.28,0.00035339,9]
[327381172,1716033039082,-500.0,0.00035339,9]
[327381174,1716033039092,-500.0,0.00035339,9]
[327381176,1716033039101,-500.0,0.00035339,9]
[327381178,1716033039111,-500.0,0.00035339,9]
[327381180,1716033039121,-500.0,0.00035339,9]
[327381182,1716033039130,-634.87,0.00035339,9]
[327381184,1716033039142,-744.81,0.00035339,9]
[327381186,1716033039152,-7310.56,0.00035339,9]
[327381187,1716033039162,-3023.22,0.00035339,9]
[327381189,1716033039173,-2174.99,0.00035339,9]
[327381191,1716033039183,-500.0,0.00035339,9]
[327381194,1716033039193,-962.66,0.00035339,9]
[327381196,1716033039203,-1726.18,0.00035339,9]
[327381198,1716033039212,-735.1,0.00035339,9]
[327381200,1716033039221,-500.0,0.00035339,9]
[327381202,1716033039231,-500.0,0.00035339,9]
[327381204,1716033039240,-500.0,0.00035339,9]
[327381206,1716033039250,-500.0,0.00035339,9]
[327381208,1716033039260,-500.0,0.00035339,9]
[327381210,1716033039270,-500.0,0.00035339,9]
[327381212,1716033039279,-941.61,0.00035339,9]
[327381214,1716033039289,-1033.59,0.00035339,9]
[327381216,1716033039298,-606.38,0.00035339,9]
[327381218,1716033039308,-618.73,0.00035339,9]
[327381220,1716033039317,-757.59,0.00035339,9]
[327381222,1716033039327,-500.0,0.00035339,9]
[327381224,1716033039336,-2440.96,0.00035339,9]
[327381227,1716033039346,-500.0,0.00035339,9]
[327381229,1716033039355,-500.0,0.00035339,9]
[327381231,1716033039369,-500.0,0.00035339,9]
[327381233,1716033039379,-500.0,0.00035339,9]
[327381235,1716033039393,-500.0,0.00035339,9]
[327381237,1716033039402,-965.58,0.00035339,9]
[327381239,1716033039414,-500.0,0.00035339,9]
[327381241,1716033039424,-3407.75,0.00035339,9]
[327381243,1716033039434,-1079.44,0.00035339,9]
[327381245,1716033039445,-5242.14,0.00035339,9]
[327381247,1716033039455,-500.0,0.00035339,9]
[327381250,1716033039465,-500.0,0.00035339,9]
[327381252,1716033039475,-500.0,0.00035339,9]
[327381254,1716033039485,-2213.85,0.00035339,9]
[327381256,1716033039494,-819.49,0.00035339,9]
[327381258,1716033039504,-500.0,0.00035339,9]
[327381260,1716033039513,-500.0,0.00035339,9]
[327381262,1716033039523,-585.68,0.00035339,9]
[327381265,1716033039533,-500.0,0.00035339,9]
[327381268,1716033039542,-500.0,0.00035339,9]
[327381271,1716033039552,-557.08,0.00035339,9]
[327381274,1716033039561,-8143.72,0.00035339,9]
[327381277,1716033039570,-517.91422275,0.00035339,9]
[327381280,1716033039580,-500.0,0.00035339,9]
[327381284,1716033039589,-500.0,0.00035339,9]
[327381287,1716033039599,-3523.28,0.00035339,9]
[327381289,1716033039608,-475.23599835,0.00035339,9]
[327381291,1716033039618,-922.63,0.00035339,9]
[327381293,1716033039628,-1321.05,0.00035339,9]
[327381295,1716033039639,-3286.81,0.00035339,9]
[327381297,1716033039649,-527.37,0.00035339,9]
[327381299,1716033039658,-500.0,0.00035339,9]
[327381301,1716033039668,-500.0,0.00035339,9]
[327381303,1716033039677,-604.46930677,0.00035339,9]
[327381305,1716033039686,-654.56,0.00035339,9]
[327381307,1716033039696,-500.0,0.00035339,9]
[327381309,1716033039706,-1886.49,0.00035339,9]
[327381311,1716033039715,-684.46,0.00035339,9]
[327381313,1716033039725,-710.41,0.00035339,9]
[327381315,1716033039734,-500.0,0.00035339,9]
[327381317,1716033039743,-500.0,0.00035339,9]
[327381319,1716033039753,-695.97,0.00035339,9]
[327381321,1716033039762,-500.0,0.00035339,9]
[327381323,1716033039771,-500.0,0.00035339,9]
[327381325,1716033039782,-2384.8,0.00035339,9]
[327381327,1716033039791,-500.0,0.00035339,9]
[327381329,1716033039800,-1299.55,0.00035339,9]
[327381331,1716033039809,-621.18,0.00035339,9]
[327381333,1716033039820,-500.0,0.00035339,9]
[327381335,1716033039831,-3371.09,0.00035339,9]
[327381337,1716033039840,-613.69,0.00035339,9]
[327381339,1716033039850,-896.68,0.00035339,9]
[327381341,1716033039860,-1215.67,0.00035339,2]
[327381343,1716033039871,-500.0,0.00035339,9]
[327381345,1716033039881,-500.0,0.00035339,9]
[327381347,1716033039892,-1622.5,0.00035339,9]
[327381349,1716033039902,-933.66,0.00035339,9]
[327381351,1716033039911,-500.0,0.00035339,9]
[327381353,1716033039920,-418.82167226,0.00035339,9]
[327381355,1716033039930,-500.0,0.00035339,9]
[327381357,1716033039939,-500.0,0.00035339,9]
[327381359,1716033039949,-1313.72,0.00035339,9]
[327381361,1716033039957,-500.0,0.00035339,9]
[327381363,1716033039967,-500.0,0.00035339,9]
[327381365,1716033039976,-2227.74,0.00035339,9]
[327381367,1716033039986,-500.0,0.00035339,9]
[327381369,1716033039995,-627.74,0.00035339,9]
[327381371,1716033040004,-500.0,0.00035339,9]
[327381373,1716033040014,-488.90023014,0.00035339,9]
[327381375,1716033040023,-500.0,0.00035339,9]
[327381377,1716033040033,-9903.84,0.00035339,9]
[327381378,1716033040042,-500.0,0.00035339,9]
[327381380,1716033040052,-500.0,0.00035339,9]
[327381383,1716033040062,-500.0,0.00035339,9]
[327381385,1716033040072,-529.23,0.00035339,9]
[327381387,1716033040082,-576.47,0.00035339,9]
[327381389,1716033040092,-15395.70624455,0.0003534,2]
[327381392,1716033040115,-17936.93518799,0.0003534,2]
[327381394,1716033040130,-6455.89910562,0.0003534,2]
[327381397,1716033040143,-36835.45198156,0.0003534,2]
[327381421,1716033040466,-500.0,0.00035339,9]
[327381423,1716033040477,-500.0,0.00035339,9]
[327381425,1716033040487,-15035.81608345,0.0003534,2]
[327381432,1716033040545,-303.27304,0.0003534,2]
[327381434,1716033040557,-6131.5,0.0003534,2]
[327381436,1716033040569,-347.22210646,0.0003534,2]
[327381440,1716033040598,-774.040005,0.0003534,2]
[327381442,1716033040609,-3364.15,0.0003534,2]
[327381444,1716033040620,-1641.30252,0.0003534,2]
[327381447,1716033040632,-329.17,0.0003534,2]
[327381449,1716033040646,-1913.41916966,0.0003534,2]
[327381451,1716033040658,-59875.09910016,0.0003534,2]
[327381665,1716033042696,-500.0,0.00035339,9]
[327381667,1716033042707,-502.25,0.00035339,9]
[327381669,1716033042716,-748.54,0.00035339,9]
[327381671,1716033042726,-8807.69,0.00035339,9]
[327381673,1716033042735,-25863.25527322,0.0003534,2]
[327381675,1716033042747,-451.45712628,0.0003534,2]
[327381687,1716033042863,-500.0,0.00035339,9]
[327381689,1716033042872,-8.1055248,0.0003534,2]
[327381691,1716033042883,-1439.08969512,0.0003534,2]
[327381692,1716033042896,-926.12701985,0.0003534,2]
[327381693,1716033042907,-1732.275,0.0003534,2]
[327381694,1716033042919,-21013.36245197,0.0003534,2]
[327381695,1716033042936,-5893.04789687,0.0003534,2]
[327381696,1716033042992,-21334.29546744,0.0003534,2]
[327381697,1716033043001,-1000.0,0.0003534,2]
[327381698,1716033043011,-175.98,0.00035429,2]
[327381699,1716033043020,-500.0,0.00035439,9]
[327381700,1716033043029,-500.0,0.00035439,9]
[327381701,1716033043038,-500.0,0.00035439,9]
[327381702,1716033043048,-500.0,0.00035439,9]
[327381703,1716033043057,-500.0,0.00035439,9]
[327381704,1716033043066,-500.0,0.00035439,9]
[327381705,1716033043075,-500.0,0.00035439,9]
[327381706,1716033043085,-500.0,0.00035439,9]
[327381707,1716033043095,-500.0,0.00035439,9]
[327381708,1716033043104,-500.0,0.00035439,9]
[327381709,1716033043113,-500.0,0.00035439,9]
[327381710,1716033043123,-500.0,0.00035439,9]
[327381711,1716033043132,-500.0,0.00035439,9]
[327381712,1716033043143,-500.0,0.00035439,9]
[327381713,1716033043152,-500.0,0.00035439,9]
[327381714,1716033043161,-500.0,0.00035439,9]
[327381715,1716033043170,-500.0,0.00035439,9]
[327381716,1716033043180,-500.0,0.00035439,9]
[327381717,1716033043189,-500.0,0.00035439,9]
[327381718,1716033043199,-500.0,0.00035439,9]
[327381719,1716033043209,-500.0,0.00035439,9]
[327381720,1716033043218,-500.0,0.00035439,9]
[327381721,1716033043227,-500.0,0.00035439,9]
[327381722,1716033043237,-500.0,0.00035439,9]
[327381723,1716033043247,-500.0,0.00035439,9]
[327381724,1716033043256,-500.0,0.00035439,9]
[327381725,1716033043265,-500.0,0.00035439,9]
[327381726,1716033043275,-502.70300256,0.00035439,9]
[327381728,1716033043284,-500.0,0.00035439,9]
[327381730,1716033043293,-500.0,0.00035439,9]
[327381731,1716033043302,-500.0,0.00035439,9]
[327381732,1716033043311,-500.0,0.00035439,9]
[327381734,1716033043320,-500.0,0.00035439,9]
[327381735,1716033043330,-500.0,0.00035439,9]
[327381736,1716033043339,-500.0,0.00035439,9]
[327381737,1716033043348,-500.0,0.00035439,9]
[327381738,1716033043357,-500.0,0.0003544,2]
[327381739,1716033043375,-869.28,0.00035452,2]
[327381740,1716033043384,-442.95,0.00035452,2]
[327381741,1716033043394,-869.28,0.00035452,2]
[327381742,1716033043403,-415.34,0.00035452,2]
[327381743,1716033043412,-869.28,0.00035452,2]
[327381744,1716033043422,-415.34,0.00035452,2]
[327381745,1716033043433,-869.28,0.00035452,2]
[327381746,1716033043443,-869.28,0.00035452,2]